bitfinex/quotes_BTCUSD_20230114
["timestamp","ask_amount","ask_price","bid_price","bid_amount"]
[1673733228283,2.55884901,20870.0,20869.0,0.97072112]
[1673733228782,2.98153368,20870.0,20869.0,0.97072112]
[1673733229044,2.27350902,20870.0,20869.0,0.97072112]
[1673733229297,2.27350902,20870.0,20869.0,0.97172112]
[1673733229298,2.40850902,20870.0,20869.0,0.97172112]
[1673733229552,2.32577368,20870.0,20869.0,0.97072112]
[1673733229808,2.46177368,20870.0,20869.0,0.97172112]
[1673733230068,2.25195068,20870.0,20869.0,0.97172112]
[1673733230322,2.57177168,20870.0,20869.0,0.97172112]
[1673733230576,2.54795517,20870.0,20869.0,0.97172112]
[1673733230806,2.84989794,20870.0,20869.0,0.97072112]
[1673733231060,2.98489794,20870.0,20869.0,0.97172112]
[1673733231327,2.51817158,20870.0,20869.0,0.97172112]
[1673733231577,2.16575495,20870.0,20869.0,0.97172112]
[1673733231822,2.48557595,20870.0,20869.0,0.97172112]
[1673733232075,2.37557795,20870.0,20869.0,0.97172112]
[1673733232344,2.16575495,20870.0,20869.0,0.97172112]
[1673733232599,2.48557595,20870.0,20869.0,0.97172112]
[1673733232813,2.37557795,20870.0,20869.0,0.97172112]
[1673733233059,2.16575495,20870.0,20869.0,0.97172112]
[1673733233318,1.093312,20870.0,20869.0,0.97172112]
[1673733233576,0.135,20870.0,20869.0,1.27607032]
[1673733238004,0.135,20870.0,20869.0,1.87062607]
[1673733238272,0.135,20870.0,20869.0,2.28107912]
[1673733238754,0.135,20870.0,20869.0,2.38107912]
[1673733239251,0.01786103,20874.0,20869.0,2.38007912]
[1673733239492,0.01786103,20874.0,20873.0,0.1145]
[1673733239738,0.01786103,20874.0,20873.0,1.072674]
[1673733239980,0.01686232,20874.0,20873.0,1.072674]
[1673733240232,0.01577942,20874.0,20873.0,1.072674]
[1673733240491,0.01577942,20874.0,20873.0,1.822474]
[1673733240810,0.03277942,20874.0,20873.0,1.827474]
[1673733241291,0.01106786,20874.0,20873.0,1.827474]
[1673733241806,0.11844767,20877.0,20874.0,0.26838585]
[1673733242034,0.97183069,20878.0,20875.0,0.1145]
[1673733242282,1.73438204,20878.0,20875.0,0.30522595]
[1673733242550,0.27608593,20876.0,20873.0,0.7543]
[1673733242803,0.27608593,20876.0,20873.0,0.7493]
[1673733242804,0.3,20875.0,20873.0,0.7493]
[1673733243060,0.75511693,20876.0,20873.0,0.7493]
[1673733243307,1.23413493,20876.0,20873.0,0.7493]
[1673733243556,1.23713493,20876.0,20873.0,1.07398543]
[1673733244290,0.30930679,20875.0,20873.0,1.07398543]
[1673733244538,0.78835679,20875.0,20873.0,0.7533]
[1673733245044,1.26739779,20875.0,20873.0,0.7533]
[1673733245588,1.30323779,20875.0,20873.0,0.7533]
[1673733245830,1.30323779,20875.0,20873.0,0.7493]
[1673733245831,1.68510502,20875.0,20873.0,0.7493]
[1673733246056,0.79433076,20874.0,20873.0,0.003]
[1673733246301,2.05245876,20874.0,20873.0,0.003]
[1673733246559,1.83848643,20874.0,20873.0,0.003]
[1673733246805,2.05245876,20874.0,20873.0,0.003]
[1673733247051,1.81271945,20874.0,20873.0,0.003]
[1673733247295,1.81260271,20874.0,20873.0,0.003]
[1673733247527,2.11971945,20874.0,20873.0,0.003]
[1673733248031,2.11960271,20874.0,20873.0,0.003]
[1673733248294,1.81960271,20874.0,20873.0,0.003]
[1673733248544,2.11960271,20874.0,20873.0,0.003]
[1673733248790,1.71656271,20874.0,20873.0,0.003]
[1673733249539,1.71667945,20874.0,20873.0,0.003]
[1673733249803,1.71656271,20874.0,20873.0,0.003]
[1673733250562,1.71667945,20874.0,20873.0,0.003]
[1673733250806,2.19562671,20874.0,20873.0,0.003]
[1673733251839,2.33843069,20874.0,20873.0,0.003]
[1673733252092,2.63831395,20874.0,20873.0,0.003]
[1673733252357,2.49562671,20874.0,20873.0,0.003]
[1673733252608,2.63831395,20874.0,20873.0,0.003]
[1673733253078,2.63843069,20874.0,20873.0,0.003]
[1673733253359,2.33831395,20874.0,20873.0,0.003]
[1673733253609,2.63831395,20874.0,20873.0,0.003]
[1673733253858,2.49562671,20874.0,20873.0,0.003]
[1673733254148,2.33831395,20874.0,20873.0,0.003]
[1673733254415,2.19562671,20874.0,20873.0,0.003]
[1673733254911,2.19574345,20874.0,20873.0,0.003]
[1673733255161,2.19562671,20874.0,20873.0,0.003]
[1673733255434,2.49562671,20874.0,20873.0,0.003]
[1673733255765,2.85228628,20874.0,20873.0,0.003]
[1673733255948,3.17222402,20874.0,20873.0,0.003]
[1673733256657,3.06210928,20874.0,20873.0,0.003]
[1673733256893,2.85240302,20874.0,20873.0,0.003]
[1673733257395,3.17210728,20874.0,20873.0,0.003]
[1673733257885,3.17211126,20874.0,20873.0,0.003]
[1673733258145,2.70971578,20874.0,20873.0,0.003]
[1673733258418,3.46532491,20874.0,20873.0,0.00088673]
[1673733258644,3.44828624,20874.0,20873.0,0.00088673]
[1673733258892,3.54828624,20874.0,20873.0,0.00088673]
[1673733259135,3.44828624,20874.0,20873.0,0.00088673]
[1673733259879,2.98748544,20874.0,20873.0,0.00088673]
[1673733260116,2.98048544,20874.0,20869.0,0.97072112]
[1673733260368,0.03584,20870.0,20869.0,0.97072112]
[1673733260622,1.313973,20870.0,20869.0,0.97072112]
[1673733260898,0.994152,20870.0,20869.0,0.97072112]
[1673733261153,0.958312,20870.0,20869.0,0.97072112]
[1673733262435,1.23533411,20870.0,20869.0,0.97672112]
[1673733262948,0.962312,20870.0,20869.0,0.97672112]
[1673733263248,0.004,20870.0,20869.0,1.51863234]
[1673733264474,0.004,20870.0,20869.0,1.68490012]
[1673733264742,0.004,20870.0,20869.0,2.16407912]
[1673733265487,0.004,20870.0,20869.0,1.97047471]
[1673733266038,0.9278545,20873.0,20869.0,1.96447471]
[1673733266277,0.014,20870.0,20869.0,0.98947954]
[1673733266540,0.014,20870.0,20869.0,0.742179]
[1673733266803,0.39250193,20876.0,20875.0,9.84235684]
[1673733266804,1.01543299,20876.0,20875.0,9.84235684]
[1673733267105,1.01543299,20876.0,20875.0,10.14708279]
[1673733267364,0.32239983,20876.0,20875.0,10.14708279]
[1673733267627,0.97834171,20877.0,20875.0,9.84235684]
[1673733267884,1.4555434,20877.0,20875.0,10.10362404]
[1673733268129,1.17021385,20877.0,20875.0,10.10362404]
[1673733268897,1.73279033,20877.0,20875.0,10.10362404]
[1673733269158,1.86779033,20877.0,20875.0,10.10862404]
[1673733269448,0.03584,20876.0,20875.0,10.10862404]
[1673733269703,0.21399716,20876.0,20875.0,10.10862404]
[1673733270238,1.86779033,20877.0,20875.0,10.10862404]
[1673733270746,2.34678633,20877.0,20875.0,10.10862404]
[1673733271211,2.24762633,20877.0,20875.0,10.10362404]
[1673733271215,0.135,20876.0,20875.0,10.10862404]
[1673733271474,1.76863233,20877.0,20875.0,10.10362404]
[1673733271734,2.1054004,20877.0,20875.0,10.10862404]
[1673733271986,2.0695604,20877.0,20875.0,10.10862404]
[1673733273246,2.0695604,20877.0,20876.0,0.24675721]
[1673733273547,2.76709181,20877.0,20876.0,0.24675721]
[1673733273760,2.76697507,20877.0,20876.0,0.24675721]
[1673733274008,2.41031314,20877.0,20876.0,0.24675721]
[1673733274267,2.76697507,20877.0,20876.0,0.24675721]
[1673733274530,2.02056324,20877.0,20876.0,0.24675721]
[1673733274803,2.36984931,20877.0,20876.0,0.25175721]
[1673733275304,2.06984931,20877.0,20876.0,0.25175721]
[1673733275555,2.15556324,20877.0,20876.0,0.25175721]
[1673733276092,2.76696129,20877.0,20876.0,0.005]
[1673733276319,2.15556324,20877.0,20876.0,0.005]
[1673733276816,2.36985569,20877.0,20876.0,0.005]
[1673733277072,1.67836155,20877.0,20876.0,0.005]
[1673733277323,0.75688707,20877.0,20876.0,0.2514565]
[1673733277577,0.97118547,20877.0,20876.0,0.2514565]
[1673733277840,0.75688707,20877.0,20876.0,0.2514565]
[1673733278673,0.97118547,20877.0,20876.0,0.2514565]
[1673733280901,0.75688707,20877.0,20876.0,0.2514565]
[1673733281425,0.135,20877.0,20876.0,0.2514565]
[1673733281938,0.613996,20877.0,20876.0,0.2514565]
[1673733282195,0.75686607,20877.0,20876.0,0.2514565]
[1673733282443,1.53586207,20877.0,20876.0,0.2514565]
[1673733282665,1.75016047,20877.0,20876.0,0.2514565]
[1673733283120,1.45016047,20877.0,20876.0,0.2514565]
[1673733283362,1.75016047,20877.0,20876.0,0.2514565]
[1673733283639,1.45016047,20877.0,20876.0,0.2514565]
[1673733283885,1.75016047,20877.0,20876.0,0.2514565]
[1673733284131,1.23586207,20877.0,20876.0,0.2514565]
[1673733284371,0.75686607,20877.0,20876.0,0.2514565]
[1673733284833,0.613996,20877.0,20876.0,0.2514565]
[1673733285585,0.135,20877.0,20876.0,0.2514565]
[1673733287347,0.613996,20877.0,20876.0,0.2514565]
[1673733288605,0.135,20877.0,20876.0,0.2514565]
[1673733291805,0.135,20877.0,20876.0,0.7304745]
[1673733292308,0.135,20877.0,20876.0,0.2514565]
[1673733294326,0.135,20877.0,20876.0,0.7304745]
[1673733297293,0.135,20877.0,20876.0,1.2094925]
[1673733299561,0.135,20877.0,20876.0,0.963036]
[1673733299810,1.41325216,20877.0,20876.0,0.005]
[1673733300060,1.77030389,20877.0,20876.0,0.005]
[1673733300309,2.07030389,20877.0,20876.0,0.005]
[1673733300818,1.11231189,20877.0,20876.0,0.005]
[1673733301344,1.25477137,20877.0,20876.0,0.00492683]
[1673733301608,0.89728719,20885.0,20882.0,5.64694513]
[1673733301867,4.44381979,20883.0,20882.0,3.38478708]
[1673733302114,4.97462475,20883.0,20882.0,3.19406113]
[1673733302876,4.7304507,20883.0,20882.0,3.19406113]
[1673733303395,4.4304507,20883.0,20882.0,3.19406113]
[1673733303645,4.85343011,20883.0,20882.0,3.20606113]
[1673733304149,4.4424507,20883.0,20882.0,3.20606113]
[1673733304396,4.53133235,20883.0,20882.0,3.20584136]
[1673733305447,4.48328571,20883.0,20882.0,3.20584136]
[1673733305699,4.48316897,20883.0,20882.0,3.20584136]
[1673733306685,4.96655397,20883.0,20882.0,3.20584136]
[1673733307928,4.06846897,20883.0,20882.0,3.20584136]
[1673733308177,3.78063851,20883.0,20882.0,3.20584136]
[1673733309181,3.0806385,20883.0,20882.0,3.20584136]
[1673733309678,3.3806385,20883.0,20882.0,3.20584136]
[1673733310189,3.38075524,20883.0,20882.0,3.20584136]
[1673733310448,3.3806385,20883.0,20882.0,3.20584136]
[1673733311183,3.38075524,20883.0,20882.0,3.20584136]
[1673733311697,1.85396636,20883.0,20882.0,3.39656731]
[1673733311967,0.7804074,20883.0,20882.0,3.48722852]
[1673733312233,0.85176094,20883.0,20882.0,3.48722852]
[1673733312492,0.36255925,20883.0,20882.0,3.47522852]
[1673733312771,0.15899751,20883.0,20882.0,3.48622852]
[1673733313043,0.14799751,20883.0,20882.0,3.47522852]
[1673733313287,0.14799751,20883.0,20882.0,3.54722852]
[1673733313537,0.14799751,20883.0,20882.0,3.47522852]
[1673733313784,0.14799751,20883.0,20882.0,3.54722852]
[1673733314032,0.00495366,20883.0,20882.0,3.54722852]
[1673733314279,0.00495366,20883.0,20882.0,3.26584136]
[1673733314532,0.00495366,20883.0,20882.0,3.50051075]
[1673733315033,0.00495366,20883.0,20882.0,4.22360336]
[1673733315764,0.00495366,20883.0,20882.0,4.4895919]
[1673733316025,0.00495366,20883.0,20882.0,4.0107109]
[1673733317041,0.00495366,20883.0,20882.0,3.5318299]
[1673733317539,0.00495366,20883.0,20882.0,3.26584136]
[1673733317797,0.00495366,20883.0,20882.0,3.74472236]
[1673733318509,0.00495366,20883.0,20882.0,4.22360336]
[1673733319017,0.00495366,20883.0,20882.0,4.49440212]
[1673733320048,0.00495366,20883.0,20882.0,4.22360336]
[1673733320558,0.00495366,20883.0,20882.0,4.48929235]
[1673733325106,0.00495366,20883.0,20882.0,4.01041135]
[1673733326622,0.60763456,20883.0,20882.0,3.26584136]
[1673733326867,1.86535056,20883.0,20882.0,3.26584136]
[1673733327129,2.34420856,20883.0,20882.0,3.26584136]
[1673733327949,2.34420856,20883.0,20882.0,3.26577033]
[1673733328146,2.48725241,20883.0,20882.0,3.26577033]
[1673733328999,2.92097341,20883.0,20882.0,3.26577033]
[1673733329709,1.91872935,20883.0,20882.0,3.26577033]
[1673733330740,1.43987135,20883.0,20882.0,3.26577033]
[1673733331226,1.73987135,20883.0,20882.0,3.26577033]
[1673733331486,1.43987135,20883.0,20882.0,3.26577033]
[1673733331973,1.43987135,20883.0,20882.0,3.26077033]
[1673733332225,0.48381166,20883.0,20882.0,3.26077033]
[1673733333004,0.50114558,20883.0,20882.0,3.26077033]
[1673733333991,0.50114558,20883.0,20882.0,3.54879128]
[1673733335501,1.07021098,20884.0,20883.0,0.27606141]
[1673733335741,1.06856467,20884.0,20883.0,0.27606141]
[1673733335986,1.84739967,20884.0,20883.0,0.27606141]
[1673733336487,1.54739967,20884.0,20883.0,0.27606141]
[1673733336728,1.54739967,20884.0,20883.0,0.28106141]
[1673733337205,1.84739967,20884.0,20883.0,0.28106141]
[1673733338207,1.54739967,20884.0,20883.0,0.28106141]
[1673733338953,1.84739967,20884.0,20883.0,0.28106141]
[1673733339191,1.54739967,20884.0,20883.0,0.28106141]
[1673733339703,1.06856467,20884.0,20883.0,0.28106141]
[1673733342880,0.11251498,20884.0,20883.0,0.28106141]
[1673733343441,0.59134998,20884.0,20883.0,0.28106141]
[1673733344893,1.22181066,20885.0,20883.0,0.28106141]
[1673733345136,1.69901235,20885.0,20883.0,0.28106141]
[1673733345341,1.5559685,20885.0,20883.0,0.28106141]
[1673733345635,1.69901235,20885.0,20883.0,0.28106141]
[1673733345903,1.91357409,20885.0,20883.0,0.28106141]
[1673733346404,0.14304385,20884.0,20883.0,0.27606141]
[1673733346656,0.92187885,20884.0,20883.0,0.28106141]
[1673733346977,1.13644059,20884.0,20883.0,0.28106141]
[1673733347365,1.16870059,20884.0,20883.0,0.28106141]
[1673733347598,0.95413885,20884.0,20883.0,0.28106141]
[1673733347848,0.95413885,20884.0,20883.0,0.27606141]
[1673733348064,0.86870059,20884.0,20883.0,0.28106141]
[1673733348206,0.65413885,20884.0,20883.0,0.28106141]
[1673733348467,0.62187885,20884.0,20883.0,0.28106141]
[1673733348898,1.10071385,20884.0,20883.0,0.28106141]
[1673733349302,1.31527559,20884.0,20883.0,0.28106141]
[1673733350242,1.79411059,20884.0,20883.0,0.28106141]
[1673733351190,1.93731879,20884.0,20883.0,0.28106141]
[1673733351473,1.72275705,20884.0,20883.0,0.28106141]
[1673733352147,2.08057114,20884.0,20883.0,0.005]
[1673733352649,2.09431909,20884.0,20883.0,0.005]
[1673733352901,1.79431909,20884.0,20882.0,3.47562701]
[1673733353148,1.79431909,20884.0,20883.0,0.005]
[1673733353380,0.957716,20883.0,20882.0,3.47562701]
[1673733353631,1.31559515,20883.0,20882.0,3.47562701]
[1673733353898,1.17244349,20883.0,20882.0,3.47562701]
[1673733354147,1.17244349,20883.0,20882.0,3.48062701]
[1673733354391,1.45871545,20883.0,20882.0,3.47562701]
[1673733354693,2.27170652,20883.0,20882.0,3.19377033]
[1673733354928,3.01764172,20883.0,20882.0,3.19377033]
[1673733355174,2.41510524,20883.0,20882.0,3.19377033]
[1673733355410,1.47333787,20883.0,20882.0,3.19377033]
[1673733355665,1.18712697,20883.0,20882.0,3.19377033]
[1673733356162,1.33027389,20883.0,20882.0,3.19377033]
[1673733356665,1.33027389,20883.0,20882.0,3.19368252]
[1673733356928,1.18724371,20883.0,20882.0,3.19368252]
[1673733357170,1.44418062,20883.0,20882.0,3.19368252]
[1673733357411,1.30102697,20883.0,20882.0,3.19368252]
[1673733358168,1.58723787,20883.0,20882.0,3.19368252]
[1673733358643,1.30102697,20883.0,20882.0,3.19368252]
[1673733358896,1.44419114,20883.0,20882.0,3.19368252]
[1673733359142,0.75066773,20883.0,20882.0,3.19368252]
[1673733359648,0.96533314,20883.0,20882.0,3.19368252]
[1673733359901,0.96514314,20883.0,20882.0,3.19368252]
[1673733360144,0.75047773,20883.0,20882.0,3.19368252]
[1673733361893,1.22933573,20883.0,20882.0,3.19368252]
[1673733362486,0.96514314,20883.0,20882.0,3.19368252]
[1673733362731,1.44400114,20883.0,20882.0,3.19368252]
[1673733362980,0.75047773,20883.0,20882.0,3.19368252]
[1673733363251,0.96514314,20883.0,20882.0,3.19368252]
[1673733363482,0.75047773,20883.0,20882.0,3.19368252]
[1673733364792,0.63657773,20883.0,20882.0,3.19368252]
[1673733365707,0.85124314,20883.0,20882.0,3.19368252]
[1673733365921,1.33010114,20883.0,20882.0,3.19368252]
[1673733366981,0.85124314,20883.0,20882.0,3.19368252]
[1673733367215,0.85120701,20883.0,20882.0,3.19368252]
[1673733369469,0.85120701,20883.0,20882.0,3.38440847]
[1673733369470,0.01474556,20883.0,20882.0,3.38440847]
[1673733369755,0.01474556,20883.0,20882.0,4.26614452]
[1673733370496,0.01474556,20883.0,20882.0,4.40948344]
[1673733371009,0.478765,20888.0,20882.0,4.40948344]
[1673733371010,0.05678376,20895.0,20882.0,5.54150313]
[1673733371261,0.57826638,20897.0,20888.0,0.47720169]
[1673733371535,0.57826638,20897.0,20886.0,0.21519778]
[1673733371536,0.49181388,20899.0,20889.0,1.18312542]
[1673733371797,0.0001,20900.0,20896.0,2.29607563]
[1673733372277,0.0001,20900.0,20899.0,0.1143]
[1673733372536,0.0001,20900.0,20899.0,0.40502595]
[1673733373054,0.0011,20900.0,20899.0,0.2143]
[1673733373829,0.0011,20900.0,20899.0,0.7143]
[1673733373830,0.0001,20900.0,20899.0,0.7143]
[1673733374079,0.0001,20900.0,20899.0,0.968]
[1673733374080,0.0011,20900.0,20899.0,0.968]
[1673733374344,0.0001,20900.0,20899.0,0.943]
[1673733374628,0.0001,20900.0,20899.0,1.7689]
[1673733374629,0.0011,20900.0,20899.0,1.7689]
[1673733374860,0.0001,20900.0,20899.0,1.6299]
[1673733375107,0.0011,20900.0,20899.0,1.7689]
[1673733375359,0.0011,20900.0,20899.0,1.6299]
[1673733375612,0.0021,20900.0,20899.0,1.7679]
[1673733375915,0.0001,20900.0,20899.0,1.6299]
[1673733376166,0.0084272,20901.0,20900.0,0.1062]
[1673733376526,1.686e-05,20902.0,20900.0,2.29366195]
[1673733376784,1.686e-05,20902.0,20901.0,1.89582903]
[1673733377040,1.686e-05,20902.0,20901.0,1.80963281]
[1673733377472,1.686e-05,20902.0,20901.0,2.73122776]
[1673733377747,1.686e-05,20902.0,20901.0,3.87781524]
[1673733377991,1.686e-05,20902.0,20901.0,3.3956526]
[1673733378241,1.686e-05,20902.0,20901.0,3.5336526]
[1673733378500,1.686e-05,20902.0,20901.0,3.5405333]
[1673733378742,0.6310228,20908.0,20903.0,4.314e-05]
[1673733378989,0.6310228,20908.0,20907.0,0.2284]
[1673733379229,0.6310228,20908.0,20907.0,0.41912595]
[1673733379478,0.6310228,20908.0,20907.0,0.2284]
[1673733379990,0.6310228,20908.0,20907.0,0.3284]
[1673733380233,0.6310228,20908.0,20907.0,0.4674]
[1673733380990,0.6310228,20908.0,20907.0,0.239]
[1673733381770,0.6310228,20908.0,20907.0,0.3537]
[1673733382283,0.6310228,20908.0,20907.0,0.693008]
[1673733382535,0.6310228,20908.0,20907.0,0.831008]
[1673733382789,0.6310228,20908.0,20907.0,0.693008]
[1673733383049,0.6310228,20908.0,20907.0,0.831008]
[1673733384567,0.00987083,20912.0,20911.0,0.65873944]
[1673733384812,0.00987083,20912.0,20911.0,1.32768239]
[1673733385025,0.00987083,20912.0,20911.0,1.13695644]
[1673733385572,0.00987083,20912.0,20911.0,1.27595644]
[1673733385842,0.00987083,20912.0,20911.0,0.79773944]
[1673733386092,0.01094792,20913.0,20912.0,0.01974166]
[1673733386855,0.01094792,20913.0,20912.0,0.11974166]
[1673733387103,0.01094792,20913.0,20912.0,0.73793566]
[1673733387349,0.01094792,20913.0,20912.0,1.21612966]
[1673733388387,0.01094792,20913.0,20912.0,1.11612966]
[1673733388651,0.01094792,20913.0,20912.0,1.21612966]
[1673733388884,0.01094792,20913.0,20912.0,1.11612966]
[1673733389148,0.01094792,20913.0,20912.0,1.21612966]
[1673733389400,0.01094792,20913.0,20912.0,1.11612966]
[1673733389898,0.01094792,20913.0,20912.0,0.15974166]
[1673733390663,0.01094792,20913.0,20912.0,0.25974166]
[1673733390921,0.01094792,20913.0,20912.0,0.15974166]
[1673733391216,0.33487955,20916.0,20912.0,0.15974166]
[1673733391490,0.33487955,20916.0,20912.0,0.35046761]
[1673733391491,0.47720169,20915.0,20912.0,0.35046761]
[1673733391730,0.47720169,20915.0,20912.0,0.15974166]
[1673733391980,1.43345569,20915.0,20912.0,0.15974166]
[1673733392479,1.43345569,20915.0,20912.0,0.01974166]
[1673733392738,1.43345569,20915.0,20912.0,0.15974166]
[1673733393519,0.3,20914.0,20912.0,0.15974166]
[1673733393810,0.478153,20914.0,20912.0,0.15974166]
[1673733394022,0.956301,20914.0,20912.0,0.15974166]
[1673733394774,0.956301,20914.0,20912.0,0.01974166]
[1673733395036,0.956301,20914.0,20912.0,0.15974166]
[1673733396339,1.03233169,20913.0,20912.0,0.15974166]
[1673733396572,1.12315269,20913.0,20912.0,0.15974166]
[1673733396831,2.05647469,20913.0,20912.0,0.15974166]
[1673733397080,2.65647469,20913.0,20911.0,0.65873944]
[1673733397344,2.65647469,20913.0,20908.0,1.6010094]
[1673733397345,0.1,20911.0,20908.0,1.6010094]
[1673733397597,0.25393,20909.0,20908.0,1.6010094]
[1673733397840,1.89747869,20909.0,20908.0,1.6010094]
[1673733398330,2.19747869,20909.0,20908.0,1.6010094]
[1673733399385,2.33347869,20909.0,20908.0,1.6060094]
[1673733399885,2.48592365,20909.0,20908.0,1.6060094]
[1673733400462,2.33347869,20909.0,20908.0,1.6060094]
[1673733401221,2.03751319,20909.0,20908.0,1.6060094]
[1673733402758,2.15111319,20909.0,20908.0,1.6060094]
[1673733403022,2.27331319,20909.0,20908.0,1.6060094]
[1673733405065,2.077556,20909.0,20908.0,1.6060094]
[1673733405314,1.777556,20909.0,20908.0,1.6060094]
[1673733405569,1.663156,20909.0,20908.0,1.6060094]
[1673733406575,1.963156,20909.0,20908.0,1.6060094]
[1673733406823,1.963156,20909.0,20908.0,1.79673535]
[1673733406824,0.136,20909.0,20908.0,1.79673535]
[1673733407076,0.136,20909.0,20908.0,1.6060094]
[1673733408353,0.1137,20911.0,20908.0,1.6590094]
[1673733408601,0.013,20909.0,20908.0,1.84973535]
[1673733408852,0.1137,20911.0,20908.0,1.6010094]
[1673733409620,0.4267,20911.0,20908.0,1.6590094]
[1673733410119,0.41533,20911.0,20908.0,1.6590094]
[1673733410642,0.11533,20911.0,20908.0,1.6590094]
[1673733411136,0.11533,20911.0,20908.0,2.27892532]
[1673733411385,0.11533,20911.0,20908.0,1.80064032]
[1673733411923,0.02352,20909.0,20908.0,1.80064032]
[1673733412192,0.11455001,20909.0,20908.0,1.80064032]
[1673733412444,0.22805001,20909.0,20908.0,1.6590094]
[1673733413181,0.52805001,20909.0,20908.0,1.6590094]
[1673733413189,0.22805001,20909.0,20908.0,1.6590094]
[1673733413435,1.48469075,20909.0,20908.0,1.6010094]
[1673733413689,1.49769075,20909.0,20908.0,1.6590094]
[1673733414194,1.81750275,20909.0,20908.0,1.6590094]
[1673733416339,1.93190275,20909.0,20908.0,1.6590094]
[1673733416832,2.40910444,20909.0,20908.0,1.6590094]
[1673733417857,2.88736644,20909.0,20908.0,1.6590094]
[1673733418603,1.81738601,20909.0,20908.0,1.6590094]
[1673733418872,0.604762,20909.0,20908.0,1.6590094]
[1673733419125,0.013,20909.0,20908.0,1.6590094]
[1673733419877,0.013,20909.0,20908.0,1.8687994]
[1673733420134,0.013,20909.0,20908.0,2.01043032]
[1673733420392,0.013,20909.0,20908.0,1.80064032]
[1673733420661,0.013,20909.0,20908.0,1.6590094]
[1673733421154,0.013,20909.0,20908.0,1.8687994]
[1673733422845,0.013,20909.0,20908.0,2.01043032]
[1673733423382,0.45993,20911.0,20908.0,1.8687994]
[1673733423654,0.45993,20911.0,20908.0,1.6590094]
[1673733423873,0.478211,20912.0,20908.0,2.80630535]
[1673733424129,0.591587,20913.0,20909.0,0.24163092]
[1673733424377,0.478187,20913.0,20910.0,0.40049195]
[1673733424638,0.478187,20913.0,20910.0,0.29072595]
[1673733424890,0.013,20911.0,20910.0,0.29072595]
[1673733425138,0.478187,20913.0,20909.0,0.71987792]
[1673733425396,0.478187,20913.0,20910.0,0.003]
[1673733425397,0.486187,20913.0,20910.0,0.003]
[1673733425902,0.32116,20912.0,20909.0,0.66897295]
[1673733426152,0.002,20911.0,20910.0,0.006]
[1673733426401,0.002,20911.0,20910.0,0.106]
[1673733426912,0.956378,20913.0,20910.0,0.1]
[1673733427162,0.958378,20913.0,20910.0,0.003]
[1673733427426,0.956378,20913.0,20909.0,0.71987992]
[1673733427650,0.002,20911.0,20910.0,0.003]
[1673733427923,0.956374,20913.0,20909.0,0.578249]
[1673733428170,0.958374,20913.0,20910.0,0.003]
[1673733428422,0.3,20912.0,20909.0,0.478249]
[1673733428654,0.002,20911.0,20910.0,0.003]
[1673733428906,0.002,20911.0,20909.0,0.478249]
[1673733429159,0.002,20911.0,20909.0,0.956496]
[1673733429412,0.002,20911.0,20910.0,0.209763]
[1673733429660,0.002,20911.0,20909.0,1.056498]
[1673733429908,0.002,20911.0,20909.0,1.0565]
[1673733430154,0.002,20911.0,20909.0,0.9565]
[1673733430625,0.002,20911.0,20909.0,1.14722595]
[1673733430876,0.002,20911.0,20909.0,0.9565]
[1673733431096,0.002,20911.0,20910.0,0.309765]
[1673733431375,0.002,20911.0,20910.0,0.788005]
[1673733431645,0.002,20911.0,20910.0,0.57824]
[1673733431904,0.002,20911.0,20910.0,0.58124]
[1673733432165,0.478192,20913.0,20910.0,0.788004]
[1673733432418,0.002,20911.0,20910.0,0.58124]
[1673733432695,0.002,20911.0,20910.0,1.05948]
[1673733432954,0.002,20911.0,20910.0,1.269242]
[1673733434754,0.002,20911.0,20910.0,1.169242]
[1673733435267,0.002,20911.0,20910.0,0.69088111]
[1673733436286,0.002,20911.0,20910.0,0.212762]
[1673733436539,0.002,20911.0,20910.0,0.003]
[1673733436790,1.39427074,20911.0,20910.0,0.003]
[1673733437066,2.19229974,20911.0,20910.0,0.003]
[1673733438082,3.13706784,20911.0,20910.0,0.003]
[1673733438342,3.32779986,20911.0,20910.0,0.003]
[1673733438603,3.1904102,20911.0,20910.0,0.003]
[1673733439129,3.1692502,20911.0,20910.0,0.003]
[1673733439381,3.1904102,20911.0,20910.0,0.003]
[1673733439917,3.27584812,20911.0,20910.0,0.003]
[1673733440190,3.427539,20911.0,20908.0,1.6010094]
[1673733440434,0.87044898,20909.0,20908.0,1.6010094]
[1673733440695,1.96746267,20909.0,20908.0,1.6010094]
[1673733440913,3.40224867,20909.0,20908.0,1.6010094]
[1673733441453,3.11680468,20909.0,20908.0,1.6010094]
[1673733441971,3.24180468,20909.0,20908.0,1.6070094]
[1673733442264,2.88499969,20909.0,20908.0,1.6070094]
[1673733442754,2.98499969,20909.0,20908.0,1.6070094]
[1673733444005,2.88499969,20909.0,20908.0,1.6070094]
[1673733444255,2.88499969,20909.0,20908.0,1.53729343]
[1673733444256,3.42469357,20909.0,20908.0,1.53729343]
[1673733444524,3.90295557,20909.0,20908.0,1.4762944]
[1673733445029,3.47176169,20909.0,20908.0,1.4762944]
[1673733445744,3.37176169,20909.0,20908.0,1.4762944]
[1673733446235,3.42858536,20909.0,20908.0,1.4762944]
[1673733446491,3.71405028,20909.0,20908.0,1.4762944]
[1673733447503,4.01405028,20909.0,20908.0,1.4762944]
[1673733447762,3.65722661,20909.0,20908.0,1.4762944]
[1673733448015,3.67838661,20909.0,20908.0,1.4762944]
[1673733448591,4.36651704,20909.0,20908.0,1.4762944]
[1673733449510,3.89241487,20909.0,20908.0,1.4762944]
[1673733450248,3.60694995,20909.0,20908.0,1.4762944]
[1673733451238,3.89241487,20909.0,20908.0,1.4762944]
[1673733452488,4.03521028,20909.0,20908.0,1.4762944]
[1673733454050,3.67838661,20909.0,20908.0,1.4762944]
[1673733454299,4.03521028,20909.0,20908.0,1.4762944]
[1673733454550,3.89240878,20909.0,20908.0,1.4762944]
[1673733454803,3.89240041,20909.0,20908.0,1.4762944]
[1673733455299,3.60693549,20909.0,20908.0,1.4762944]
[1673733455524,3.89240041,20909.0,20908.0,1.4762944]
[1673733455763,3.60693549,20909.0,20908.0,1.4762944]
[1673733456007,3.89240041,20909.0,20908.0,1.4762944]
[1673733456997,3.60693549,20909.0,20908.0,1.4762944]
[1673733457515,3.89240041,20909.0,20908.0,1.4762944]
[1673733457754,3.60693549,20909.0,20908.0,1.4762944]
[1673733458009,3.89240041,20909.0,20908.0,1.4762944]
[1673733458498,3.75170713,20909.0,20908.0,1.4762944]
[1673733458981,3.73054713,20909.0,20908.0,1.4762944]
[1673733459229,3.75170713,20909.0,20908.0,1.4762944]
[1673733459439,4.1085308,20909.0,20908.0,1.4762944]